[Event "Lliga Catalana DH 2023"]
[Site "Catalonia"]
[Date "2023.03.18"]
[Round "9.4"]
[White "Cu Hor, Winston Darwin"]
[Black "Travesset Sagre, Jan"]
[Result "1/2-1/2"]
[ECO "A11"]
[WhiteElo "2317"]
[BlackElo "2237"]
[Annotator "TA"]
[PlyCount "252"]
[EventDate "2023.01.24"]
[EventType "team-tourn"]
[EventCountry "ESP"]
[SourceTitle "playchess.com"]
[Source "ChessBase"]
[SourceQuality "1"]
[TimeControl "40/5400+30:1800+30"]

{[%evp 40,252,-10,-21,-16,-3,-4,-13,-7,-11,-8,-6,-7,-118,366,-294,-270,-270,-296,-295,-293,-290,-289,-289,-273,-265,-254,-297,-296,-296,-295,-295,-288,-481,-474,-236,-236,-494,-487,-470,-460,-418,-216,-216,-216,-216,-216,-216,-216,-216,-216,-216,-216,-216,-216,-216,-216,-216,-216,-216,-216,-216,-216,-216,-216,-216,-216,-216,-216,-216,-216,-216,-216,-216,-216,-216,-216,-216,-216,-216,0,-216,-216,-216,-143,-216,-216,-224,-143,-143,-143,-143,-143,-143,-143,-143,-143,-143,-143,-143,-143,-143,-143,-143,-143,-143,-143,-143,-143,-1523,-143,-143,0,-143,0,-143,-143,-143,0,-143,0,-143,-143,-143,-143,-143,-143,-143,-143,-143,0,-143,-143,-143,-143,-143,-143,-143,-143,-143,-143,-143,-143,-143,-143,-158,-143,-143,-143,-143,-143,-143,0,-143,-143,-143,-143,-143,-20,-20,0,-143,-143,-143,-143,-143,-143,-143,-143,-143,-143,-143,-143,-143,-143,-143,-143,-143,-143,-1541,0,-143,-143,-1013,-835,-443,-143,-143,-143,-143,-143,-143,-75,-75,-75,-75,-75,-75,0,-14,0,-75,-75,-75,-75,-75,-20,-20,0,-75,0,-75,0,-100,0]} 1. Nf3 {[%emt 0:00:06]} d5 {[%emt 0:01:38]} 2. c4 {[%emt 0:00:06]} c6 {[%emt 0:00:18]} 3. g3 {[%emt 0:00:42]} Nf6 {[%emt 0:00:28]} 4. Bg2 {[%emt 0:00:07]} dxc4 {[%emt 0:08:30]} 5. a4 {[%emt 0:04:01]} Be6 {[%emt 0:11:38]} 6. Qc2 {[%emt 0:01:02]} Na6 {[%emt 0:00:36]} 7. O-O {[%emt 0:04:03]} Bd5 {[%emt 0:05:42]} 8. Na3 {[%emt 0:12:11]} Nb4 {[%emt 0:00:37]} 9. Qc3 {[%emt 0:00:39]} e6 {[%emt 0:01:20]} 10. Ne5 {[%emt 0:11:46]} Bxg2 {[%emt 0:04:27]} 11. Kxg2 {[%emt 0:00:02]} Qd5+ {[%emt 0:00:09]} 12. f3 {[%emt 0:01:31]} b5 {[%emt 0:01:02]} 13. e4 {[%emt 0:22:44]} Qc5 {[%emt 0:00:01]} 14. d4 {[%emt 0:00:37]} cxd3 {[%emt 0:00:43]} 15. axb5 {[%emt 0:00:19]} cxb5 {[%emt 0:01:09]} 16. Qxc5 {[%emt 0:03:49]} Bxc5 {[%emt 0:02:14]} 17. Nxb5 {[%emt 0:00:14]} O-O {[%emt 0:07:26]} 18. Bd2 {[%emt 0:02:03]} Nc2 {[%emt 0:15:14]} 19. Rac1 {[%emt 0:06:06]} Ne3+ {[%emt 0:17:41]} 20. Bxe3 {[%emt 0:00:28]} Bxe3 {[%emt 0:00:01]} 21. Rce1 {[%emt 0:00:43]} Rfb8 {[%emt 0:02:47]} 22. Rxe3 {[%emt 0:00:18]} Rxb5 {[%emt 0:00:01]} 23. Nxd3 {[%emt 0:00:18]} Rb3 {[%emt 0:01:28]} 24. Ra1 {[%emt 0:01:22]} Nd7 {[%emt 0:05:53]} 25. Ra3 {[%emt 0:07:16]} Rab8 {[%emt 0:00:53]} 26. Rxa7 {[%emt 0:00:41]} (26. Kf2 $11 {remains equal.}) 26... Nc5 $2 {[%emt 0:06:29][%mdl 8192]} (26... Ne5 $17 {stays on course. Hoping for ...Nc4.} 27. Nxe5 Rxe3) 27. Ra3 $4 {[%emt 0:00:24][%mdl 8192]} (27. Nxc5 $18 {was the only winning move.} Rxe3 28. Kf2 Rxe4 29. Nxe4) 27... Rxa3 $1 $19 {[%emt 0:00:01]} 28. bxa3 {[%emt 0:04:57]} Rb3 {[%emt 0:00:01]} 29. Nxc5 {[%emt 0:00:34]} Rxe3 {[%emt 0:00:02]} 30. a4 {[%emt 0:00:07]} Rc3 {[%emt 0:01:51]} 31. Nd7 {[%emt 0:01:04]} Rc7 {[%emt 0:00:05]} 32. Nb6 {[%emt 0:00:54]} Ra7 {[%emt 0:00:04]} 33. g4 {[%emt 0:01:01]} Ra6 {[%emt 0:00:01]} 34. Nd7 {[%emt 0:00:07]} g5 {[%emt 0:04:06]} 35. h4 {[%emt 0:01:13]} h6 {[%emt 0:00:14]} ({Stronger than} 35... Rxa4 36. hxg5 Kg7 37. Kg3 $17) (35... gxh4 $2 36. Kh3 $19) 36. hxg5 $2 {[%emt 0:05:22]} (36. Nf6+ Kg7 37. Ne8+ Kh7 38. h5) 36... hxg5 $19 {[%emt 0:00:00]} ({Worse is} 36... Rxa4 37. gxh6 Kh7 38. g5 $11) 37. Kf2 {[%emt 0:01:39]} (37. Nc5 $142 Ra5 {[%mdl 64] Deflection} 38. Nd7) 37... Rxa4 $19 {[%emt 0:00:41]} 38. e5 $2 {[%emt 0:00:14]} (38. Ne5 {might work better.}) 38... Ra3 $19 {[%emt 0:00:36]} 39. Ke2 {[%emt 0:01:14]} Kg7 {[%emt 0:00:06]} 40. Nc5 {[%emt 0:00:16]} Kg6 {[%emt 0:01:30]} (40... Kf8 $142 {Threatens to win with ...Ke7.} 41. Kf2 Ra5) 41. Nd3 $19 {[%emt 0:30:53]} Ra4 {[%emt 0:32:42]} 42. Ke3 {[%emt 0:00:13]} Rc4 {[%emt 0:00:29]} 43. Nf2 {[%emt 0:00:08]} Rc1 {[%emt 0:00:17]} 44. Ne4 {[%emt 0:00:58]} Rd1 {[%emt 0:00:32]} 45. Nf6 {[%emt 0:01:58]} Re1+ {[%emt 0:00:23]} 46. Kd4 {[%emt 0:00:15]} Re2 {[%emt 0:00:37]} 47. Ne4 {[%emt 0:00:34]} Ra2 {[%emt 0:00:10]} 48. Nf6 {[%emt 0:00:41]} Ra5 {[%emt 0:00:34]} 49. Ke4 {[%emt 0:00:09]} Ra8 {[%emt 0:00:32]} 50. Ke3 {[%emt 0:00:24]} Rh8 {[%emt 0:00:26]} 51. Ke4 {[%emt 0:00:33]} Kg7 {[%emt 0:00:26]} 52. Nd7 {[%emt 0:00:01]} Rh1 {[%emt 0:00:31]} 53. Nf6 {[%emt 0:00:44]} Rf1 {[%emt 0:00:54]} 54. Ke3 {[%emt 0:00:22]} Ra1 {[%emt 0:00:36]} 55. Ke4 {[%emt 0:00:52]} Ra3 {[%emt 0:00:24]} 56. Nh5+ {[%emt 0:00:50]} Kg6 {[%emt 0:00:38]} 57. Nf6 {[%emt 0:00:07]} Ra4+ {[%emt 0:00:19]} 58. Ke3 {[%emt 0:00:15]} Ra8 {[%emt 0:00:41]} 59. Kd3 {[%emt 0:00:27]} Rh8 $2 {[%emt 0:00:22]} (59... Kh6 $19 {aiming for ...Ra5.} 60. Kd4 Ra4+ 61. Kd3 Rf4) 60. Ke3 $2 {[%emt 0:00:16]} (60. Ke4 $11 {and White is okay.} Rb8 61. Nd7) 60... Rh6 {[%emt 0:00:36]} 61. Kd4 {[%emt 0:01:04]} Kg7 {[%emt 0:00:10]} 62. Nd7 {[%emt 0:00:17]} (62. Ne4 $17) 62... Rh2 $19 {[%emt 0:00:24]} 63. Ke3 {[%emt 0:00:18]} f5 {[%emt 0:00:59]} 64. exf6+ {[%emt 0:02:31]} Kf7 {[%emt 0:00:01]} 65. Ke4 {[%emt 0:03:38]} Rd2 {[%emt 0:00:21]} 66. Ne5+ {[%emt 0:00:42]} Kxf6 {[%emt 0:00:01]} 67. Nc4 {[%emt 0:00:19]} Ra2 {[%emt 0:00:36]} 68. Kd4 {[%emt 0:00:32]} Ra4 {[%emt 0:01:01]} 69. Kd3 {[%emt 0:00:11]} Ra1 {[%emt 0:00:45]} 70. Ke3 {[%emt 0:00:23]} Rc1 {[%emt 0:00:43]} 71. Kd3 {[%emt 0:01:23]} Rd1+ {[%emt 0:00:23]} 72. Ke3 {[%emt 0:00:06]} Rd5 {[%emt 0:00:25]} 73. Ke4 {[%emt 0:00:42]} Rb5 {[%emt 0:00:42]} 74. Kd4 $2 {[%emt 0:00:39][%mdl 8192]} (74. Ke3 $17) 74... Rb4 $2 {[%emt 0:00:32]} (74... e5+ $1 $19 75. Kc3 e4 76. fxe4 Rb1) 75. Kc3 $17 {[%emt 0:00:14]} Ra4 {[%emt 0:00:19]} 76. Kd3 {[%emt 0:00:10]} Ra1 {[%emt 0:00:39]} 77. Ke3 $1 {[%emt 0:00:20]} Re1+ {[%emt 0:00:17]} 78. Kd3 {[%emt 0:00:31]} Rd1+ {[%emt 0:00:39]} 79. Ke3 $1 {[%emt 0:00:15]} Rc1 {[%emt 0:00:31]} 80. Kd3 $1 {[%emt 0:00:17]} Ke7 {[%emt 0:00:36]} 81. Kd4 {[%emt 0:00:29]} Ra1 {[%emt 0:00:22]} 82. Kd3 {[%emt 0:00:18]} Ra8 {[%emt 0:00:26]} 83. Kd4 {[%emt 0:00:21]} Kf6 {[%emt 0:00:07]} 84. Kd3 {[%emt 0:00:13]} Ke7 {[%emt 0:00:18]} 85. Kd4 {[%emt 0:00:08]} Rf8 {[%emt 0:00:02]} 86. Ke3 {[%emt 0:00:16]} Rf4 {[%emt 0:00:11]} 87. Nd2 {[%emt 0:00:15]} Kf6 {[%emt 0:00:49]} 88. Ne4+ {[%emt 0:00:11]} Kg6 {[%emt 0:00:01]} 89. Nc5 {[%emt 0:00:12]} Rf7 {[%emt 0:01:13]} 90. Nd3 {[%emt 0:00:32]} Ra7 {[%emt 0:00:30]} 91. Nc5 {[%emt 0:00:55]} Ra5 {[%emt 0:00:11]} 92. Kd4 {[%emt 0:00:57]} Kf6 {[%emt 0:00:32]} 93. Ne4+ {[%emt 0:00:36]} Ke7 {[%emt 0:00:03]} 94. Nc5 {[%emt 0:00:25]} Rb5 {[%emt 0:01:43]} 95. Kc4 {[%emt 0:00:26]} Ra5 {[%emt 0:00:41]} 96. Kd4 $1 {[%emt 0:00:08]} Ra3 {[%emt 0:00:18]} 97. Ke4 {[%emt 0:00:30]} Kd6 {[%emt 0:00:21]} 98. Nb7+ {[%emt 0:00:09]} Kc7 {[%emt 0:00:54]} (98... Kd7 $17 {White must now prevent ...Rc3.} 99. Nc5+ Kd6 100. Nb7+ Kd7 101. Nc5+ Kd6) 99. Nc5 $11 {[%emt 0:00:02]} Kd6 (99... Ra5 $11 100. Nxe6+ Kd6) 100. Nb7+ $1 $17 {[%emt 0:00:45]} Kc6 {[%emt 0:01:02]} 101. Nd8+ {[%emt 0:00:02]} Kd7 {[%emt 0:00:08]} 102. Nf7 {[%emt 0:00:21]} Ra5 $1 {[%emt 0:00:59]} 103. Ne5+ {[%emt 0:00:02]} Ke8 {[%emt 0:00:09]} 104. Nc4 {[%emt 0:00:58]} Rc5 {[%emt 0:00:24]} 105. Kd4 {[%emt 0:00:15]} Rd5+ {[%emt 0:00:01]} 106. Ke4 {[%emt 0:00:01]} Ke7 {[%emt 0:00:21]} 107. Ne3 {[%emt 0:00:33]} Ra5 {[%emt 0:01:06]} 108. Nc4 {[%emt 0:00:14]} Ra4 {[%emt 0:00:01]} 109. Kd4 $2 {[%emt 0:00:08][%mdl 8192]} (109. Kd3 $17) 109... Kf6 $2 {[%emt 0:00:26]} (109... e5+ $1 $19 {and Black stays clearly on top.} 110. Kd3 e4+ 111. fxe4 Ke6) 110. Kd3 $1 $17 {[%emt 0:00:08]} e5 {[%emt 0:01:34]} 111. Kc3 $2 {[%emt 0:00:27][%mdl 8192]} (111. Nd2 $17) 111... Ke6 $19 {[%emt 0:00:11]} 112. Kd3 {[%emt 0:00:08]} Ra7 $2 {[%emt 0:00:46]} (112... e4+ $1 $19 113. fxe4 Ra2) 113. Ke4 $17 {[%emt 0:01:49]} Rf7 {[%emt 0:00:31]} ({Not} 113... Ra4 $2 114. Kd3 $19) 114. Nd2 {[%emt 0:00:19]} Rf4+ {[%emt 0:00:23]} 115. Ke3 {[%emt 0:00:01]} Kd5 {[%emt 0:00:08]} (115... Kf6 $142 116. Ne4+ Kg6) 116. Ke2 $17 {[%emt 0:00:43]} Kd4 {[%emt 0:01:02]} 117. Nb3+ {[%emt 0:00:20] [#]} Kc4 $1 {[%emt 0:00:13]} 118. Nd2+ {[%emt 0:00:09]} Kd4 {[%emt 0:00:33]} (118... Kd5 $17 119. Ke3 Rb4) 119. Nb3+ $1 $11 {[%emt 0:00:05]} Kd5 {[%emt 0:00:50]} (119... Kc3 $11 120. Nc5 Kc4) 120. Nd2 $17 {[%emt 0:00:21]} Ra4 {[%emt 0:00:29]} 121. Ke3 {[%emt 0:01:18]} Ra3+ {[%emt 0:00:01]} 122. Kf2 {[%emt 0:00:24] [#]} Ra2 {[%emt 0:00:38]} ({Black should try} 122... Ra7 $1 $17 123. Ne4 Rg7) 123. Ke3 $1 $11 {[%emt 0:00:13]} Ra3+ {[%emt 0:00:01]} (123... Ra6 $11) 124. Kf2 $1 $17 {[%emt 0:00:09]} Ra4 {[%emt 0:04:08]} 125. Ke3 $1 {[%emt 0:01:31]} Rf4 {[%emt 0:00:00]} 126. Ke2 $1 {[%emt 0:00:52]} Kd4 {[%emt 0:00:00]} (126... Rb4 $17 127. Ke3 Rf4) 1/2-1/2

[Event "Lliga Catalana DH 2023"]
[Site "Catalonia"]
[Date "2023.03.18"]
[Round "9.4"]
[White "Iglesias Romero, Jorge"]
[Black "Iermito, Sebastian"]
[Result "0-1"]
[ECO "C70"]
[WhiteElo "2271"]
[BlackElo "2528"]
[Annotator "TA"]
[PlyCount "62"]
[EventDate "2023.01.24"]
[EventType "team-tourn"]
[EventCountry "ESP"]
[SourceTitle "playchess.com"]
[Source "ChessBase"]
[SourceQuality "1"]
[TimeControl "40/5400+30:1800+30"]

{[%evp 9,62,28,40,28,37,19,22,20,9,28,17,16,36,0,6,-10,-8,-27,36,22,31,-77,-78,-76,-58,-58,-50,-51,0,0,0,-7,0,-77,-19,-10,-14,-101,0,0,0,0,0,0,8,16,17,0,0,-12,-19,-150,-160,-144,-135]} 1. e4 e5 2. Nf3 Nc6 3. Bb5 {[%cal Bf1b5,Bb5a4,Ba4b3][%mdl 32]} a6 4. Ba4 Bc5 5. O-O Nge7 {[#]} 6. Nxe5 $1 {[%mdl 64] Remove Defender, Decoy. C70: Ruy Lopez: 3...a6 4 Ba4, Norwegian and Delayed Schliemann.} Nxe5 7. d4 b5 8. Bb3 {The position is equal.} Bxd4 9. Qxd4 d6 {Threatens to win with ...c5.} 10. c3 c5 11. Qe3 O-O $36 {[%mdl 2048] Black fights for an advantage.} 12. f4 Ng4 13. Qg3 {[#]} Nf6 $146 (13... Qb6 $11 14. Bc2 f5) ({Predecessor:} 13... c4 14. Bc2 f5 15. h3 Nf6 16. Nd2 Qb6+ 17. Kh1 d5 18. exd5 Nexd5 19. Nf3 Ne4 20. Bxe4 fxe4 {½-½ Lei,T (2505)-Stefanova,A (2470) Speed Chess (Women) Main blitz 2021 (2.13)}) 14. Bc2 Bb7 15. f5 (15. Nd2 $14) 15... Bxe4 $17 (15... Nxe4 16. Bxe4 Bxe4 17. f6 $14) 16. Bg5 Ned5 (16... Bxc2 $2 17. Bxf6 g6 18. Qg5 Nxf5 19. Bxd8 $18) 17. Bd1 Kh8 (17... c4 {with more complications.} 18. Bh6 Ne8 19. Nd2 Bd3) 18. Nd2 Qd7 (18... c4 {simplifies} 19. Nxe4 Nxe4 20. Bxd8 Nxg3 21. hxg3 Raxd8 22. g4 g5) 19. c4 bxc4 20. Nxc4 Rad8 21. Qh4 (21. Bb3 $11 {remains equal.}) 21... Rb8 (21... Bxf5 $6 22. Ba4 Qxa4 23. Rxf5 $11) ({Black should play} 21... Rde8 $1 $17 {[%cal Oe4g2]} 22. Qg3 Bxf5) 22. Bb3 $11 {Strongly threatening Rad1.} Bd3 23. Rf3 (23. Rfd1 $11 {keeps the balance.} Bxc4 24. Bxc4 Qxf5 25. b3) 23... Bxc4 (23... Bxf5 $6 24. Rd1 Bg6 25. Bxf6 Nxf6 26. Nxd6 $11) (23... Be2 $1 $17 {[%cal Re2f3]} 24. Rg3 Nh5) 24. Bxc4 Rxb2 25. Bxd5 $1 Nxd5 {[%cal Bf6d5,Bd5c3,Bc3e2][%mdl 32]} 26. f6 {White threatens fxg7+ and mate.} Rfb8 {...R8b4 would be deadly.} 27. fxg7+ (27. Raf1 $5 Rb1 $8 28. fxg7+ {[%mdl 64] Discovered Attack} Kg8 29. Bc1 $11) 27... Kg8 $1 {And now ...R8b4 would win.} 28. Qe4 {[%mdl 1024] White has compensation.} Qb7 (28... Qe6 29. Qxe6 fxe6 30. Bh6) 29. Raf1 {aiming for Rxf7.} Nc3 $1 {[%mdl 64] Discovered Attack, Double Attack. Chess con chili.} 30. Qf5 {[#]} (30. Qc4 $1 $11 {was the only way to keep the balance.} Ne2+ 31. Kh1) 30... Ne2+ $1 $17 31. Kh1 {[%cal Og5e7] [#] Hoping for Be7!} Rb1 $1 {Beautiful play by Iermito!   Weighted Error Value: White=0.25 (precise) /Black=0.15 (very precise)} (31... Rxa2 $2 32. Be7 $18 (32. Rh3 h6 $16) (32. Rh3 h6 $16)) ({Stronger than} 31... Nd4 32. Qxf7+ Qxf7 33. Rxf7 $15) 0-1

[Event "Lliga Catalana DH 2023"]
[Site "Catalonia"]
[Date "2023.03.18"]
[Round "9.5"]
[White "Matnadze Bujiashvili, Ann"]
[Black "Salgado Allaria, Carlos"]
[Result "1/2-1/2"]
[ECO "D11"]
[WhiteElo "2392"]
[BlackElo "2234"]
[Annotator "TA"]
[PlyCount "50"]
[EventDate "2023.01.24"]
[EventType "team-tourn"]
[EventCountry "ESP"]
[SourceTitle "playchess.com"]
[Source "ChessBase"]
[SourceQuality "1"]
[TimeControl "40/5400+30:1800+30"]

{[%evp 14,50,34,37,32,35,50,27,50,17,82,6,12,20,10,6,14,-8,-9,-9,-5,-7,-4,-14,-10,-8,-4,-4,-5,-3,-5,-4,-8,-18,0,0,0,-18,0]} 1. d4 Nf6 2. Nf3 d5 3. c4 c6 4. g3 Bf5 5. Bg2 e6 6. O-O Nbd7 7. Nc3 Be7 8. Nh4 {Hoping for Nxf5.} Bg4 {D11: Slav Defence: 3 Nf3 sidelines and 3...Nf6 4 e3 Bg4.} 9. h3 Bh5 10. cxd5 cxd5 {White has an edge.} 11. Qb3 (11. g4 $5 {[%cal Rg4h5]} Bg6 12. Nxg6 hxg6 13. g5 $11) 11... Qb6 {[#]} (11... Nb6 $11 {remains equal.}) 12. Qxb6 (12. g4 $1 $16) 12... Nxb6 $11 {The position is equal.} 13. g4 Bg6 14. Nxg6 hxg6 {[#]} 15. Bg5 $146 ({Predecessor:} 15. Bf4 Kd7 16. Rfc1 Rac8 17. Nd1 Bd6 18. Bxd6 Kxd6 19. b3 g5 20. Nb2 Nbd7 21. Nd3 {½-½ Volfl,Z (2134)-Chalupa,I (2143) CZE-chT1W 1516 2015 (9.8)}) 15... a6 16. Rac1 Rc8 17. Rfd1 Nfd7 18. Bxe7 Kxe7 19. e4 {[%cal Re4d5]} Nf6 20. exd5 Nfxd5 21. Nxd5+ Nxd5 22. Bxd5 exd5 {KRR-KRR} 23. Kg2 Kd6 24. Rxc8 Rxc8 25. Rd2 {Wards off Rc2} Rc1 {Weighted Error Value: White=0.14 (very precise) /Black=0.14 (very precise)} 1/2-1/2

[Event "Lliga Catalana DH 2023"]
[Site "Catalonia"]
[Date "2023.03.18"]
[Round "9.5"]
[White "Roca Planas, Edgar"]
[Black "Campins Machado, Francesc"]
[Result "0-1"]
[ECO "B83"]
[WhiteElo "2153"]
[BlackElo "2157"]
[Annotator "TA"]
[PlyCount "108"]
[EventDate "2023.01.24"]
[EventType "team-tourn"]
[EventCountry "ESP"]
[SourceTitle "playchess.com"]
[Source "ChessBase"]
[SourceQuality "1"]
[TimeControl "40/5400+30:1800+30"]

{[%evp 24,108,15,-15,-6,-8,-6,-15,-23,-18,-13,-19,-4,-4,-4,-3,-6,-41,-27,-31,-19,-89,-62,-91,-86,-103,-83,-116,-114,-118,-76,-83,-82,-68,-30,-30,-30,-30,-30,-30,-30,-30,-30,-30,-32,-33,-8,-8,-8,-30,-30,-89,0,0,0,-171,-171,-172,-96,-102,-21,-224,-181,-180,-297,-566,-553,-686,-686,-1019,-827,-754,-1871,-1101,-696,-7132,-4133,-29980,-29981,-29981,-29982,-29982,-29983,-29983,-29984,-29984,-29985]} 1. e4 {[%emt 0:00:03]} c5 {[%emt 0:00:45]} 2. Nf3 {[%emt 0:00:05]} e6 {[%emt 0:00:16]} 3. d4 {[%emt 0:00:06]} cxd4 {[%emt 0:00:29]} 4. Nxd4 {[%emt 0:00:07]} Nc6 {[%emt 0:00:14]} 5. Nc3 {[%emt 0:00:06]} d6 {[%emt 0:00:54]} 6. Be3 {[%emt 0:00:48]} Nf6 {[%emt 0:01:30]} 7. Be2 {[%emt 0:01:00]} Be7 {[%emt 0:00:07]} 8. O-O {[%emt 0:01:35]} O-O {[%emt 0:00:05]} 9. f4 {[%emt 0:00:53]} Bd7 {[%emt 0:00:17]} 10. Qe1 {[%emt 0:08:44]} Nxd4 {[%emt 0:00:48]} 11. Bxd4 {[%emt 0:00:05]} Bc6 {[%emt 0:00:06]} 12. Qg3 {[%emt 0:00:04]} g6 {[%emt 0:00:16]} 13. Bd3 {[%emt 0:01:50]} Nh5 {[%emt 0:02:33] B83: Sicilian Scheveningen: 6 Be2, lines without ...a6.} 14. Qe3 {[%emt 0:06:59] [#]} Nxf4 $1 {[%emt 0:05:21][%mdl 64] Remove Defender, Decoy} 15. Qxf4 {[%emt 0:15:01]} (15. Rxf4 $5 e5 $8 16. Rf3 $11) 15... e5 {[%emt 0:00:16] The position is equal.} 16. Qf2 {[%emt 0:06:04]} exd4 {[%emt 0:00:56]} 17. Qxd4 {[%emt 0:01:06] [#]} Qb6 $146 {[%emt 0:00:15]} ({Predecessor:} 17... Qa5 18. Kh1 Qe5 19. Qxe5 dxe5 20. Bc4 Kg7 21. Bd5 Rad8 22. a3 h5 23. Rf3 Bg5 {0-1 Sukandar,I (2354)-Alekseev,E (2688) Agzamov Memorial 05th 2011 (2)}) 18. Qxb6 {[%emt 0:00:29]} axb6 {[%emt 0:00:02]} 19. a3 {[%emt 0:10:40]} Kg7 {[%emt 0:00:59]} 20. Ne2 {[%emt 0:01:14]} Bf6 {[%emt 0:02:03] A strong pair of Bishops.} 21. c3 {[%emt 0:00:37]} Rae8 {[%emt 0:03:42]} 22. Ng3 {[%emt 0:00:51]} (22. Rad1 $11 {remains equal.}) 22... h5 {[%emt 0:00:38][%cal Bh7h5,Bh5h4,Bh4h3][%mdl 32]} 23. Rae1 {[%emt 0:00:42]} Re5 {[%emt 0:04:32]} 24. Re2 {[%emt 0:02:21]} Bg5 {[%emt 0:16:28]} 25. Rd1 {[%emt 0:06:29]} Rfe8 {[%emt 0:03:48]} 26. Kf2 {[%emt 0:03:18]} h4 {[%emt 0:07:08]} 27. Nf1 {[%emt 0:00:18]} h3 {[%emt 0:01:25]} (27... Bxe4 $6 28. Bxe4 Rxe4 29. Rxe4 Rxe4 30. Rxd6 $11) 28. g3 {[%emt 0:02:39]} d5 {[%emt 0:13:47] Black has more active pieces. The white rooks are badly placed.} ({Don't play} 28... Bxe4 29. Bxe4 Rxe4 30. Rxe4 Rxe4 31. Nd2 Be3+ 32. Kf3 $11) 29. exd5 {[%emt 0:01:04]} Bxd5 {[%emt 0:00:09]} 30. Rde1 {[%emt 0:11:12]} Rxe2+ {[%emt 0:00:55]} 31. Rxe2 {[%emt 0:00:13]} Rxe2+ {[%emt 0:02:17]} 32. Kxe2 $11 {[%emt 0:00:05][%mdl 4096] Endgame KBB-KBN} Bc1 {[%emt 0:01:48]} 33. b4 {[%emt 0:00:13]} f5 {[%emt 0:01:23]} ({Of course not} 33... Bxa3 34. Ne3 Be6 35. Kd2 $11) 34. Ne3 {[%emt 0:02:20]} Bc6 {[%emt 0:01:31]} 35. b5 {[%emt 0:05:10]} Bh1 {[%emt 0:00:17]} 36. a4 {[%emt 0:00:42]} Ba3 {[%emt 0:06:40]} 37. Kd2 {[%emt 0:04:52]} (37. g4 $11) 37... Bd6 {[%emt 0:03:16]} (37... Bg2 $1 $17) 38. Bxf5 {[%emt 0:02:25]} Bxg3 $1 {[%emt 0:04:51]} 39. hxg3 $2 {[%emt 0:02:28]} (39. Bxh3 $11 {and White is okay.} Bxh2 40. c4) 39... gxf5 $19 {[%emt 0:03:49]} 40. Nxf5+ $11 {[%emt 0:00:09] KB-KN} Kf6 {[%emt 0:00:18]} (40... Kf7 $19 {Hoping for ...Bf3.} 41. Ne3 Bd5 {[%mdl 64] Promotion}) 41. Ne3 $17 {[%emt 0:30:04]} Ke5 {[%emt 0:32:26]} (41... Ke6 $17 {...Bd5 would be deadly.} 42. Nf1 Bd5) 42. Ke2 $2 {[%emt 0:00:17] [#] White does not recover from this.} (42. Ng4+ $11 {and White stays safe.} Kf5 43. Nh2) 42... Ke4 $1 $19 {[%emt 0:00:45]} 43. Nf1 {[%emt 0:03:06] [#]} Bf3+ $1 {[%emt 0:00:08]} 44. Kf2 $2 {[%emt 0:00:04]} (44. Kd2 {was worth a try.}) 44... Bd1 {[%emt 0:00:47]} 45. g4 {[%emt 0:03:08]} Bxg4 {[%emt 0:01:35] Strongly threatening ...Kd3.} 46. c4 {[%emt 0:01:07]} Be6 {[%emt 0:00:50]} 47. c5 {[%emt 0:00:23]} bxc5 {[%emt 0:00:42][%cal Bb6c5,Bc5c4][%mdl 32]} 48. a5 {[%emt 0:00:36]} Bc8 {[%emt 0:03:09]} 49. b6 {[%emt 0:00:36]} Kd3 {[%emt 0:00:59]} 50. Kg3 {[%emt 0:00:30]} c4 {[%emt 0:01:30] Black mates.} 51. Nh2 {[%emt 0:00:27]} c3 {[%emt 0:00:10]} 52. Nf3 {[%emt 0:00:33]} c2 {[%emt 0:00:13]} 53. Ne1+ {[%emt 0:00:31]} Kd2 {[%emt 0:00:07]} 54. Nxc2 {[%emt 0:00:04]} Kxc2 {[%emt 0:00:02] Weighted Error Value: White=0.62/Black=0.39} 0-1

[Event "Lliga Catalana DH 2023"]
[Site "Catalonia"]
[Date "2023.03.18"]
[Round "9.6"]
[White "Gutierrez Clares, Joaquim"]
[Black "Baches Garcia, Guillermo"]
[Result "1/2-1/2"]
[ECO "D41"]
[WhiteElo "2191"]
[BlackElo "2328"]
[Annotator "TA"]
[PlyCount "45"]
[EventDate "2023.01.24"]
[EventType "team-tourn"]
[EventCountry "ESP"]
[SourceTitle "playchess.com"]
[Source "ChessBase"]
[SourceQuality "1"]
[TimeControl "40/5400+30:1800+30"]

{[%evp 26,45,28,5,9,0,0,0,0,0,25,12,8,14,20,0,19,0,26,0,17,0]} 1. d4 Nf6 2. c4 e6 3. Nf3 d5 4. Nc3 c5 5. cxd5 Nxd5 6. e4 Nxc3 7. bxc3 cxd4 8. cxd4 Bb4+ 9. Bd2 Bxd2+ 10. Qxd2 O-O 11. Bc4 Nd7 12. O-O b6 13. Rfe1 Bb7 14. Rad1 Rc8 {D41: Queen's Gambit Declined: Semi-Tarrasch with 5 cxd5.} 15. Bb3 Re8 16. h3 h6 17. Qf4 Qf6 18. Qg4 {[#]} Red8 $146 ({Predecessor:} 18... Qe7 19. Qf4 Qb4 20. Re3 b5 21. Ne5 Nxe5 22. dxe5 Rc7 23. Rg3 Kh7 24. Rg4 a5 {0-1 Pershin,D (2409)-Sarana,A (2636) RUS-chT 26th 2019 (6.3)}) 19. Re3 Qe7 20. Qf4 (20. d5 $5 {[%cal Rd5e6]} Nf6 21. Qf4 $11) 20... Qf6 21. Qg4 Qe7 22. Qf4 (22. d5 $5 {[%cal Rd5e6]} Nf6 23. Qg3 $11) 22... Qf6 23. Qg4 {Not much happened in this game.   Weighted Error Value: White=0.11 (very precise) /Black=0.05 (flawless)} 1/2-1/2